fUST/lending_fUST_20251206
["ID","MTS","AMOUNT","RATE_DAILY","PERIOD"]
[396482953,1764984652197,-460.68061972,0.00014437,2]
[396482954,1764984652207,-548.51,0.00014437,2]
[396482955,1764984652216,-757.75,0.00014437,2]
[396482956,1764984652225,-500.0,0.00014437,2]
[396482957,1764984652234,-1986.82,0.00014437,2]
[396482958,1764984652243,-500.0,0.00014437,2]
[396482959,1764984652252,-500.0,0.00014437,2]
[396482960,1764984652261,-500.0,0.00014437,2]
[396482961,1764984652270,-500.0,0.00014437,2]
[396482962,1764984652280,-500.0,0.00014437,2]
[396482963,1764984652289,-500.0,0.00014437,2]
[396482964,1764984652299,-500.0,0.00014437,2]
[396482965,1764984652308,-500.0,0.00014437,2]
[396482966,1764984652318,-520.6,0.00014437,2]
[396482967,1764984652328,-500.0,0.00014437,2]
[396482968,1764984652337,-500.0,0.00014437,2]
[396482969,1764984652347,-500.0,0.00014437,2]
[396482970,1764984652356,-598.55,0.00014437,2]
[396482971,1764984652367,-500.0,0.00014437,2]
[396482972,1764984652376,-940.7,0.00014437,2]
[396482973,1764984652386,-669.51,0.00014437,2]
[396482974,1764984652394,-597.0,0.00014437,2]
[396482975,1764984652404,-500.0,0.00014437,2]
[396482976,1764984652413,-500.0,0.00014437,2]
[396482977,1764984652422,-6381.07,0.00014437,2]
[396482978,1764984652432,-1812.13,0.00014437,2]
[396482979,1764984652441,-528.51,0.00014437,2]
[396482980,1764984652449,-625.47,0.00014437,2]
[396482981,1764984652458,-500.0,0.00014437,2]
[396482982,1764984652467,-853.71,0.00014467,2]
[396482983,1764984652475,-801.55,0.00014467,2]
[396482984,1764984652484,-620.92,0.00014467,2]
[396482985,1764984652493,-493.59505004,0.00014467,2]
[396482986,1764984652501,-590.2976494,0.00014467,2]
[396482987,1764984652510,-500.0,0.00014467,2]
[396482988,1764984652519,-764.94,0.00014467,2]
[396482989,1764984652527,-500.0,0.00014467,2]
[396482990,1764984652537,-3498.92,0.00014467,2]
[396482991,1764984652545,-655.07,0.00014467,2]
[396482992,1764984652554,-588.87,0.00014467,2]
[396482993,1764984652563,-500.0,0.00014467,2]
[396482994,1764984652572,-681.95,0.00014467,2]
[396482995,1764984652581,-520.94,0.00014467,2]
[396482996,1764984652590,-2149.63,0.00014467,2]
[396482997,1764984652599,-1365.09,0.00014467,2]
[396482998,1764984652608,-500.0,0.00014467,2]
[396482999,1764984652617,-500.0,0.00014467,2]
[396483000,1764984652626,-1566.82,0.00014467,2]
[396483001,1764984652635,-500.0,0.00014467,2]
[396483002,1764984652644,-500.0,0.00014467,2]
[396483003,1764984652652,-892.27,0.00014467,2]
[396483004,1764984652661,-500.0,0.00014467,2]
[396483005,1764984652670,-667.29,0.00014467,2]
[396483006,1764984652679,-795.69,0.00014467,2]
[396483007,1764984652688,-1027.78,0.00014467,2]
[396483008,1764984652696,-824.92,0.00014467,2]
[396483009,1764984652705,-552.81,0.00014467,2]
[396483010,1764984652714,-500.0,0.00014467,2]
[396483011,1764984652724,-1145.85,0.00014467,2]
[396483012,1764984652733,-528.84,0.00014491,2]
[396483013,1764984652742,-500.0,0.00014491,2]
[396483014,1764984652751,-311.83858362,0.00014491,2]
[396483015,1764984652760,-500.0,0.00014491,2]
[396483016,1764984652769,-500.0,0.00014491,2]
[396483017,1764984652778,-500.0,0.00014491,2]
[396483018,1764984652787,-500.0,0.00014491,2]
[396483019,1764984652796,-500.0,0.00014491,2]
[396483020,1764984652805,-500.0,0.00014491,2]
[396483021,1764984652814,-500.0,0.00014491,2]
[396483022,1764984652824,-500.0,0.00014491,2]
[396483023,1764984652833,-546.28,0.00014491,2]
[396483024,1764984652842,-500.0,0.00014491,2]
[396483025,1764984652851,-500.0,0.00014491,2]
[396483026,1764984652860,-500.0,0.00014491,2]
[396483027,1764984652869,-500.0,0.00014491,2]
[396483028,1764984652877,-500.0,0.00014491,2]
[396483029,1764984652887,-500.0,0.00014491,2]
[396483030,1764984652896,-500.0,0.00014491,2]
[396483031,1764984652905,-500.0,0.00014491,2]
[396483032,1764984652914,-517.41,0.00014491,2]
[396483033,1764984652923,-598.96,0.00014491,2]
[396483034,1764984652933,-500.0,0.00014491,2]
[396483035,1764984652942,-500.0,0.00014491,2]
[396483036,1764984652951,-500.0,0.00014491,2]
[396483037,1764984652962,-613.36199925,0.00014491,2]
[396483038,1764984652972,-500.0,0.00014491,2]
[396483039,1764984652982,-500.0,0.00014491,2]
[396483040,1764984652992,-500.0,0.00014491,2]
[396483041,1764984653001,-500.0,0.00014491,2]
[396483042,1764984653010,-500.0,0.00014491,2]
[396483043,1764984653019,-500.0,0.00014491,2]
[396483044,1764984653030,-500.0,0.00014491,2]
[396483045,1764984653041,-500.0,0.00014491,2]
[396483046,1764984653051,-500.0,0.00014491,2]
[396483047,1764984653060,-500.0,0.00014491,2]
[396483048,1764984653070,-500.0,0.00014491,2]
[396483049,1764984653079,-550.79,0.00014491,2]
[396483050,1764984653088,-500.0,0.00014491,2]
[396483051,1764984653097,-645.23,0.00014491,2]
[396483052,1764984653107,-500.0,0.00014491,2]
[396483053,1764984653116,-500.0,0.00014491,2]
[396483054,1764984653126,-500.0,0.00014491,2]
[396483055,1764984653135,-2207.61,0.00014491,2]
[396483056,1764984653145,-500.0,0.00014491,2]
[396483057,1764984653154,-500.0,0.00014491,2]
[396483058,1764984653163,-2826.44,0.00014491,2]
[396483059,1764984653172,-500.0,0.00014491,2]
[396483060,1764984653182,-500.0,0.00014491,2]
[396483061,1764984653191,-500.0,0.00014491,2]
[396483062,1764984653201,-621.01,0.00014491,2]
[396483063,1764984653211,-500.0,0.00014491,2]
[396483064,1764984653220,-5177.47,0.00014491,2]
[396483065,1764984653229,-500.0,0.00014491,2]
[396483066,1764984653239,-500.0,0.00014491,2]
[396483067,1764984653248,-500.0,0.00014491,2]
[396483068,1764984653258,-500.0,0.00014491,2]
[396483069,1764984653268,-859.96,0.00014491,2]
[396483070,1764984653278,-500.0,0.00014491,2]
[396483071,1764984653287,-500.0,0.00014491,2]
[396483072,1764984653297,-500.0,0.00014491,2]
[396483073,1764984653306,-599.16,0.00014491,2]
[396483074,1764984653316,-549.61,0.00014491,2]
[396483075,1764984653327,-1571.23,0.00014491,2]
[396483076,1764984653336,-3500.13,0.00014491,2]
[396483077,1764984653346,-1464.41,0.00014491,2]
[396483078,1764984653355,-698.02,0.00014491,2]
[396483079,1764984653365,-500.0,0.00014491,2]
[396483080,1764984653375,-500.0,0.00014491,2]
[396483081,1764984653384,-500.0,0.00014491,2]
[396483082,1764984653393,-500.0,0.00014491,2]
[396483083,1764984653403,-883.03,0.00014491,2]
[396483084,1764984653415,-500.0,0.00014491,2]
[396483085,1764984653425,-11115.79,0.00014491,2]
[396483086,1764984653435,-729.47,0.00014491,2]
[396483087,1764984653445,-500.0,0.00014491,2]
[396483088,1764984653454,-502.24,0.00014491,2]
[396483089,1764984653464,-150.78799522,0.00014491,2]
[396483090,1764984653475,-500.0,0.00014491,2]
[396483091,1764984653485,-694.27,0.00014491,2]
[396483092,1764984653494,-2105.28,0.00014491,2]
[396483093,1764984653504,-500.0,0.00014491,2]
[396483094,1764984653514,-1762.9,0.00014491,2]
[396483095,1764984653523,-500.0,0.00014491,2]
[396483096,1764984653533,-937.65,0.00014491,2]
[396483097,1764984653543,-557.66,0.00014491,2]
[396483098,1764984653552,-1125.54,0.00014491,2]
[396483099,1764984653562,-500.0,0.00014491,2]
[396483100,1764984653572,-500.0,0.00014491,2]
[396483101,1764984653581,-500.0,0.00014491,2]
[396483102,1764984653591,-1449.04,0.00014491,2]
[396483103,1764984653601,-500.0,0.00014491,2]
[396483104,1764984653611,-807.63,0.00014493,2]
[396483105,1764984653622,-632.35,0.00014493,2]
[396483106,1764984653630,-500.0,0.00014493,2]
[396483107,1764984653640,-503.96,0.00014493,2]
[396483108,1764984653649,-500.0,0.00014493,2]
[396483109,1764984653658,-500.0,0.00014519,2]
[396483110,1764984653666,-439.19750514,0.00014519,2]
[396483111,1764984653675,-500.0,0.00014519,2]
[396483112,1764984653685,-980.88,0.00014519,2]
[396483113,1764984653695,-500.0,0.00014519,2]
[396483114,1764984653705,-500.0,0.00014519,2]
[396483115,1764984653715,-500.0,0.00014519,2]
[396483116,1764984653724,-500.0,0.00014519,2]
[396483117,1764984653734,-500.0,0.00014519,2]
[396483118,1764984653744,-500.0,0.00014519,2]
[396483119,1764984653755,-500.0,0.00014519,2]
[396483120,1764984653764,-500.0,0.00014519,2]
[396483121,1764984653774,-561.45,0.00014519,2]
[396483122,1764984653783,-500.0,0.00014519,2]
[396483123,1764984653792,-5373.57,0.00014519,2]
[396483124,1764984653802,-785.9,0.00014519,2]
[396483125,1764984653811,-856.82,0.00014519,2]
[396483126,1764984653821,-502.2,0.00014519,2]
[396483127,1764984653831,-500.0,0.00014519,2]
[396483128,1764984653841,-4577.73,0.00014519,2]
[396483129,1764984653851,-2814.42,0.00014519,2]
[396483130,1764984653861,-5044.77,0.00014519,2]
[396483131,1764984653870,-500.0,0.00014519,2]
[396483132,1764984653879,-520.69,0.00014519,2]
[396483133,1764984653889,-500.0,0.00014519,2]
[396483134,1764984653898,-1037.07,0.00014519,2]
[396483135,1764984653907,-500.0,0.0001452,2]
[396483136,1764984653917,-500.0,0.0001452,2]
[396483137,1764984653926,-500.0,0.0001452,2]
[396483138,1764984653936,-500.0,0.0001452,2]
[396483139,1764984653945,-500.0,0.0001452,2]
[396483140,1764984653955,-500.0,0.0001452,2]
[396483141,1764984653964,-500.0,0.0001452,2]
[396483142,1764984653974,-500.0,0.0001452,2]
[396483143,1764984653983,-737.02,0.0001452,2]
[396483144,1764984653992,-2006.27,0.0001452,2]
[396483145,1764984654001,-1388.45,0.0001452,2]
[396483146,1764984654011,-299.45582059,0.0001452,2]
[396483147,1764984654021,-1160.36,0.0001452,2]
[396483148,1764984654031,-500.0,0.0001452,2]
[396483149,1764984654042,-500.0,0.0001452,2]
[396483150,1764984654052,-936.33,0.0001452,2]
[396483151,1764984654063,-389.98621244,0.0001452,2]
[396483152,1764984654073,-500.0,0.0001452,2]
[396483153,1764984654084,-500.0,0.0001452,2]
[396483154,1764984654094,-500.0,0.0001452,2]
[396483155,1764984654104,-414.21763874,0.0001452,2]
[396483156,1764984654114,-500.0,0.0001452,2]
[396483157,1764984654123,-500.0,0.0001452,2]
[396483158,1764984654133,-667.72,0.0001452,2]
[396483159,1764984654144,-663.74,0.0001452,2]
[396483160,1764984654153,-500.0,0.0001452,2]
[396483161,1764984654164,-521.52,0.0001452,2]
[396483162,1764984654174,-500.0,0.0001452,2]
[396483163,1764984654184,-500.0,0.0001452,2]
[396483164,1764984654193,-500.0,0.0001452,2]
[396483165,1764984654203,-500.0,0.0001452,2]
[396483166,1764984654212,-2200.43,0.0001452,2]
[396483167,1764984654222,-500.0,0.0001452,2]
[396483168,1764984654232,-6276.9,0.0001452,2]
[396483169,1764984654242,-500.0,0.0001452,2]
[396483170,1764984654251,-500.0,0.0001452,2]
[396483171,1764984654261,-500.0,0.0001452,2]
[396483172,1764984654271,-500.0,0.0001452,2]
[396483173,1764984654282,-635.64,0.0001452,2]
[396483174,1764984654292,-212.94980327,0.0001452,2]
[396483175,1764984654302,-500.0,0.0001452,2]
[396483176,1764984654311,-500.0,0.0001452,2]
[396483177,1764984654322,-464.98327907,0.0001452,2]
[396483178,1764984654331,-109.53847427,0.0001452,2]
[396483179,1764984654608,-390.46152573,0.0001452,2]
[396483180,1764984654618,-550.76,0.0001452,2]
[396483181,1764984654627,-500.0,0.0001452,2]
[396483182,1764984654637,-141.08550507,0.0001452,2]
[396483183,1764984654649,-668.29449493,0.0001452,2]
[396483184,1764984654659,-946.82,0.0001452,2]
[396483185,1764984654668,-600.0,0.00014599,2]
[396483186,1764984654678,-500.0,0.00014663,2]
[396483187,1764984654687,-500.0,0.00014663,2]
[396483188,1764984654696,-500.0,0.00014663,2]
[396483189,1764984654707,-620.0,0.00014663,2]
[396483190,1764984654716,-898.04,0.00014663,2]
[396483191,1764984654726,-500.0,0.00014663,2]
[396483192,1764984654736,-681.84,0.00014663,2]
[396483193,1764984654745,-500.0,0.00014663,2]
[396483194,1764984654754,-500.0,0.00014663,2]
[396483195,1764984654763,-298.8,0.00014663,2]
[396483196,1764984654772,-1516.05,0.00014663,2]
[396483197,1764984654781,-1404.0,0.00014663,2]
[396483198,1764984654790,-230.3114789,0.00014663,2]
[396483199,1764984654800,-500.0,0.00014663,2]
[396483200,1764984654813,-562.49,0.00014663,2]
[396483201,1764984654822,-1017.17,0.00014663,2]
[396483202,1764984654831,-920.33,0.00014663,2]
[396483203,1764984654841,-667.7,0.00014663,2]
[396483204,1764984654850,-500.0,0.00014663,2]
[396483205,1764984654859,-3402.67,0.00014663,2]
[396483206,1764984654867,-500.0,0.00014663,2]
[396483207,1764984654876,-1979.91,0.00014663,2]
[396483208,1764984654885,-500.0,0.00014663,2]
[396483209,1764984654895,-500.0,0.00014663,2]
[396483210,1764984654904,-500.0,0.00014663,2]
[396483211,1764984654913,-695.76,0.00014663,2]
[396483212,1764984654922,-500.0,0.00014663,2]
[396483213,1764984654931,-2098.47,0.00014663,2]
[396483214,1764984654940,-838.31,0.00014663,2]
[396483215,1764984654949,-500.0,0.00014663,2]
[396483216,1764984654958,-267.71861416,0.00014711,2]
[396483217,1764984654967,-500.0,0.00014711,2]
[396483218,1764984654976,-1594.6,0.00014711,2]
[396483219,1764984654985,-500.0,0.00014711,2]
[396483220,1764984654995,-500.0,0.00014711,2]
[396483221,1764984655006,-500.0,0.00014711,2]
[396483222,1764984655015,-500.0,0.00014711,2]
[396483223,1764984655024,-500.0,0.00014711,2]
[396483224,1764984655032,-940.36,0.00014711,2]
[396483225,1764984655041,-688.03,0.00014711,2]
[396483226,1764984655050,-500.0,0.00014711,2]
[396483227,1764984655059,-271.18160642,0.00014711,2]
[396483228,1764984655068,-500.0,0.00014711,2]
[396483229,1764984655076,-500.0,0.00014711,2]
[396483230,1764984655086,-500.0,0.00014711,2]
[396483231,1764984655095,-500.0,0.00014711,2]
[396483232,1764984655104,-584.38,0.00014711,2]
[396483233,1764984655113,-983.17,0.00014711,2]
[396483234,1764984655121,-500.0,0.00014711,2]
[396483235,1764984655131,-500.0,0.00014711,2]
[396483236,1764984655140,-500.0,0.00014711,2]
[396483237,1764984655149,-500.0,0.00014711,2]
[396483238,1764984655158,-2127.45,0.00014711,2]
[396483239,1764984655167,-548.51,0.00014711,2]
[396483240,1764984655175,-757.75,0.00014711,2]
[396483241,1764984655185,-500.0,0.00014711,2]
[396483242,1764984655195,-1986.82,0.00014711,2]
[396483243,1764984655206,-500.0,0.00014711,2]
[396483244,1764984655216,-500.0,0.00014711,2]
[396483245,1764984655225,-500.0,0.00014711,2]
[396483246,1764984655234,-500.0,0.00014711,2]
[396483247,1764984655243,-500.0,0.00014711,2]
[396483248,1764984655251,-510.99964632,0.00014711,2]
[396483249,1764984655260,-500.0,0.00014711,2]
[396483250,1764984655269,-500.0,0.00014711,2]
[396483251,1764984655280,-520.6,0.00014711,2]
[396483252,1764984655289,-500.0,0.00014711,2]
[396483253,1764984655299,-500.0,0.00014711,2]
[396483254,1764984655308,-500.0,0.00014711,2]
[396483255,1764984655318,-598.55,0.00014711,2]
[396483256,1764984655327,-430.28574213,0.00014711,2]
[396483257,1764984655337,-940.7,0.00014711,2]
[396483258,1764984655346,-669.51,0.00014711,2]
[396483259,1764984655355,-597.0,0.00014711,2]
[396483260,1764984655364,-500.0,0.00014711,2]
[396483261,1764984655374,-500.0,0.00014711,2]
[396483262,1764984655383,-6381.07,0.00014711,2]
[396483263,1764984655393,-1812.13,0.00014711,2]
[396483264,1764984655403,-528.51,0.00014711,2]
[396483265,1764984655411,-625.47,0.00014711,2]
[396483266,1764984655421,-500.0,0.00014711,2]
[396483267,1764984655430,-1089.33216143,0.00014738,2]
[396483268,1764984655442,-1223.50481089,0.00014738,2]
[396483269,1764984655451,-200.0,0.00014738,2]
[396483270,1764984655460,-304.80740444,0.00014738,2]
[396483271,1764984655469,-853.71,0.00014741,2]
[396483272,1764984655479,-801.55,0.00014741,2]
[396483273,1764984655488,-620.92,0.00014741,2]
[396483274,1764984655498,-500.0,0.00014741,2]
[396483275,1764984655507,-764.94,0.00014741,2]
[396483276,1764984655516,-500.0,0.00014741,2]
[396483277,1764984655525,-3498.92,0.00014741,2]
[396483278,1764984655535,-655.07,0.00014741,2]
[396483279,1764984655544,-588.87,0.00014741,2]
[396483280,1764984655553,-500.0,0.00014741,2]
[396483281,1764984655562,-681.95,0.00014741,2]
[396483282,1764984655571,-520.94,0.00014741,2]
[396483283,1764984655580,-1166.83780867,0.00014741,2]
[396483284,1764984655590,-605.261483,0.00014741,2]
[396483285,1764984655603,-377.53070833,0.00014741,2]
[396483286,1764984655612,-1365.09,0.00014741,2]
[396483287,1764984655621,-500.0,0.00014741,2]
[396483288,1764984655630,-500.0,0.00014741,2]
[396483289,1764984655639,-1566.82,0.00014741,2]
[396483290,1764984655648,-500.0,0.00014741,2]
[396483291,1764984655658,-500.0,0.00014741,2]
[396483292,1764984655667,-892.27,0.00014741,2]
[396483293,1764984655675,-500.0,0.00014741,2]
[396483294,1764984655684,-667.29,0.00014741,2]
[396483295,1764984655693,-795.69,0.00014741,2]
[396483296,1764984655702,-1027.78,0.00014741,2]
[396483297,1764984655711,-824.92,0.00014741,2]
[396483298,1764984655720,-552.81,0.00014741,2]
[396483299,1764984655729,-500.0,0.00014741,2]
[396483300,1764984655739,-1145.85,0.00014741,2]
[396483301,1764984655748,-456.73915586,0.00014752,2]
[396483302,1764984656067,-622.40080329,0.00014752,2]
[396483303,1764984656078,-324.30927438,0.00014752,2]
[396483304,1764984656091,-1470.922002,0.00014752,2]
[396483305,1764984656105,-4022.36164162,0.00014752,2]
[396483306,1764984656116,-528.84,0.00014765,2]
[396483307,1764984656129,-340.23073965,0.00014765,2]
[396483308,1764984656139,-500.0,0.00014765,2]
[396483309,1764984656148,-500.0,0.00014765,2]
[396483310,1764984656158,-500.0,0.00014765,2]
[396483311,1764984656167,-500.0,0.00014765,2]
[396483312,1764984656179,-500.0,0.00014765,2]
[396483313,1764984656190,-500.0,0.00014765,2]
[396483314,1764984656201,-500.0,0.00014765,2]
[396483315,1764984656212,-500.0,0.00014765,2]
[396483316,1764984656223,-546.28,0.00014765,2]
[396483317,1764984656233,-500.0,0.00014765,2]
[396483318,1764984656243,-500.0,0.00014765,2]
[396483319,1764984656252,-500.0,0.00014765,2]
[396483320,1764984656261,-500.0,0.00014765,2]
[396483321,1764984656270,-500.0,0.00014765,2]
[396483322,1764984656280,-500.0,0.00014765,2]
[396483323,1764984656289,-500.0,0.00014765,2]
[396483324,1764984656299,-500.0,0.00014765,2]
[396483325,1764984656307,-517.41,0.00014765,2]
[396483326,1764984656317,-598.96,0.00014765,2]
[396483327,1764984656326,-500.0,0.00014765,2]
[396483328,1764984656335,-500.0,0.00014765,2]
[396483329,1764984656344,-500.0,0.00014765,2]
[396483330,1764984656354,-500.0,0.00014765,2]
[396483331,1764984656363,-500.0,0.00014765,2]
[396483332,1764984656372,-500.0,0.00014765,2]
[396483333,1764984656381,-500.0,0.00014765,2]
[396483334,1764984656391,-500.0,0.00014765,2]
[396483335,1764984656400,-500.0,0.00014765,2]
[396483336,1764984656410,-500.0,0.00014765,2]
[396483337,1764984656419,-500.0,0.00014765,2]
[396483338,1764984656428,-500.0,0.00014765,2]
[396483339,1764984656437,-500.0,0.00014765,2]
[396483340,1764984656446,-500.0,0.00014765,2]
[396483341,1764984656456,-550.79,0.00014765,2]
[396483342,1764984656465,-500.0,0.00014765,2]
[396483343,1764984656474,-235.83492648,0.00014765,2]
[396483344,1764984656486,-409.39507352,0.00014765,2]
[396483345,1764984656495,-500.0,0.00014765,2]
[396483346,1764984656504,-500.0,0.00014765,2]
[396483347,1764984656513,-500.0,0.00014765,2]
[396483348,1764984656522,-286.28844821,0.00014765,2]
[396483349,1764984656534,-1921.32155179,0.00014765,2]
[396483350,1764984656543,-500.0,0.00014765,2]
[396483351,1764984656554,-500.0,0.00014765,2]
[396483352,1764984656563,-500.0,0.00014765,2]
[396483353,1764984656572,-500.0,0.00014765,2]
[396483354,1764984656582,-512.65300032,0.00014765,2]
[396483355,1764984656592,-621.01,0.00014765,2]
[396483356,1764984656601,-500.0,0.00014765,2]
[396483357,1764984656610,-5177.47,0.00014765,2]
[396483358,1764984656619,-500.0,0.00014765,2]
[396483359,1764984656629,-500.0,0.00014765,2]
[396483360,1764984656638,-500.0,0.00014765,2]
[396483361,1764984656647,-594.00753238,0.00014765,2]
[396483362,1764984656656,-859.96,0.00014765,2]
[396483363,1764984656665,-500.0,0.00014765,2]
[396483364,1764984656675,-500.0,0.00014765,2]
[396483365,1764984656685,-599.16,0.00014765,2]
[396483366,1764984656695,-549.61,0.00014765,2]
[396483367,1764984656705,-1571.23,0.00014765,2]
[396483368,1764984656715,-3500.13,0.00014765,2]
[396483369,1764984656726,-1464.41,0.00014765,2]
[396483370,1764984656735,-698.02,0.00014765,2]
[396483371,1764984656745,-500.0,0.00014765,2]
[396483372,1764984656755,-500.0,0.00014765,2]
[396483373,1764984656764,-500.0,0.00014765,2]
[396483374,1764984656773,-500.0,0.00014765,2]
[396483375,1764984656784,-883.03,0.00014765,2]
[396483376,1764984656795,-500.0,0.00014765,2]
[396483377,1764984656805,-11115.79,0.00014765,2]
[396483378,1764984656815,-729.47,0.00014765,2]
[396483379,1764984656825,-500.0,0.00014765,2]
[396483380,1764984656834,-502.24,0.00014765,2]
[396483381,1764984656843,-248.81638023,0.00014765,2]
[396483382,1764984656853,-694.27,0.00014765,2]
[396483383,1764984656863,-2105.28,0.00014765,2]
[396483384,1764984656873,-500.0,0.00014765,2]
[396483385,1764984656882,-1762.9,0.00014765,2]
[396483386,1764984656892,-500.0,0.00014765,2]
[396483387,1764984656902,-937.65,0.00014765,2]
[396483388,1764984656911,-557.66,0.00014765,2]
[396483389,1764984656920,-1125.54,0.00014765,2]
[396483390,1764984656929,-500.0,0.00014765,2]
[396483391,1764984656938,-500.0,0.00014765,2]
[396483392,1764984656947,-272.66029519,0.00014765,2]
[396483393,1764984656956,-1449.04,0.00014765,2]
[396483394,1764984656968,-500.0,0.00014765,2]
[396483395,1764984656980,-807.63,0.00014767,2]
[396483396,1764984656990,-632.35,0.00014767,2]
[396483397,1764984656999,-500.0,0.00014767,2]
[396483398,1764984657008,-503.96,0.00014767,2]
[396483399,1764984657018,-500.0,0.00014767,2]
[396483400,1764984657029,-500.0,0.00014793,2]
[396483401,1764984657038,-500.0,0.00014793,2]
[396483402,1764984657050,-980.88,0.00014793,2]
[396483403,1764984657061,-500.0,0.00014793,2]
[396483404,1764984657071,-500.0,0.00014793,2]
[396483405,1764984657080,-500.0,0.00014793,2]
[396483406,1764984657090,-500.0,0.00014793,2]
[396483407,1764984657100,-500.0,0.00014793,2]
[396483408,1764984657110,-500.0,0.00014793,2]
[396483409,1764984657120,-500.0,0.00014793,2]
[396483410,1764984657130,-500.0,0.00014793,2]
[396483411,1764984657139,-561.45,0.00014793,2]
[396483412,1764984657148,-500.0,0.00014793,2]
[396483413,1764984657157,-5373.57,0.00014793,2]
[396483414,1764984657166,-785.9,0.00014793,2]
[396483415,1764984657175,-856.82,0.00014793,2]
[396483416,1764984657184,-502.2,0.00014793,2]
[396483417,1764984657193,-500.0,0.00014793,2]
[396483418,1764984657202,-4577.73,0.00014793,2]
[396483419,1764984657212,-2814.42,0.00014793,2]
[396483420,1764984657222,-5044.77,0.00014793,2]
[396483421,1764984657231,-500.0,0.00014793,2]
[396483422,1764984657240,-520.69,0.00014793,2]
[396483423,1764984657250,-500.0,0.00014793,2]
[396483424,1764984657259,-1037.07,0.00014793,2]
[396483425,1764984657268,-500.0,0.00014794,2]
[396483426,1764984657277,-500.0,0.00014794,2]
[396483427,1764984657285,-500.0,0.00014794,2]
[396483428,1764984657295,-500.0,0.00014794,2]
[396483429,1764984657304,-500.0,0.00014794,2]
[396483430,1764984657314,-500.0,0.00014794,2]
[396483431,1764984657323,-500.0,0.00014794,2]
[396483432,1764984657333,-500.0,0.00014794,2]
[396483433,1764984657342,-737.02,0.00014794,2]
[396483434,1764984657351,-2006.27,0.00014794,2]
[396483435,1764984657361,-1388.45,0.00014794,2]
[396483436,1764984657371,-1160.36,0.00014794,2]
[396483437,1764984657380,-500.0,0.00014794,2]
[396483438,1764984657390,-500.0,0.00014794,2]
[396483439,1764984657399,-936.33,0.00014794,2]
[396483440,1764984657408,-500.0,0.00014794,2]
[396483441,1764984657417,-500.0,0.00014794,2]
[396483442,1764984657427,-500.0,0.00014794,2]
[396483443,1764984657437,-500.0,0.00014794,2]
[396483444,1764984657447,-667.72,0.00014794,2]
[396483445,1764984657456,-663.74,0.00014794,2]
[396483446,1764984657465,-276.86877324,0.00014794,2]
[396483447,1764984657474,-521.52,0.00014794,2]
[396483448,1764984657483,-500.0,0.00014794,2]
[396483449,1764984657493,-500.0,0.00014794,2]
[396483450,1764984657502,-500.0,0.00014794,2]
[396483451,1764984657511,-500.0,0.00014794,2]
[396483452,1764984657521,-2200.43,0.00014794,2]